fUSD/lending_fUSD_20240216
["ID","MTS","AMOUNT","RATE_DAILY","PERIOD"]
[314225318,1708099759556,-538.3,0.00026275,2]
[314225319,1708099759577,-3645.7282088,0.000263,2]
[314225320,1708099759597,-1852.42,0.00026334,2]
[314225321,1708099759619,-385.51195906,0.00026366,2]
[314225322,1708099769479,172.01,0.00021367,2]
[314225323,1708099769532,-265.18804094,0.00026366,2]
[314225324,1708099769554,-1243.69,0.00026366,2]
[314225325,1708099769576,-150.1,0.00026428,2]
[314225326,1708099769596,-171.52,0.0002652,2]
[314225327,1708099769621,-480.0,0.0002652,2]
[314225328,1708099769643,-152.13,0.00026564,2]
[314225329,1708099769663,-912.11,0.00026614,2]
[314225330,1708099769686,-10455.83510357,0.00026649,2]
[314225331,1708099769707,-3080.95,0.0002665,2]
[314225332,1708099769730,-2000.0,0.0002665,2]
[314225333,1708099769750,-11138.07,0.0002665,2]
[314225334,1708099769771,-542.77,0.0002668,2]
[314225335,1708099769791,-169.79,0.0002674,2]
[314225336,1708099769812,-2705.0,0.0002674,2]
[314225337,1708099769833,-150.1,0.00026772,2]
[314225338,1708099769852,-181.96163294,0.000269,2]
[314225339,1708099769874,-800.0,0.00027,3]
[314225340,1708099769896,-1113.29,0.00027,2]
[314225341,1708099769916,-150.99,0.00027,2]
[314225342,1708099769944,-152.13,0.00027084,2]
[314225343,1708099769965,-150.1,0.00027117,2]
[314225344,1708099769986,-5609.51600136,0.000272,2]
[314225345,1708099770006,-499.99,0.000272,2]
[314225346,1708099770029,-593.91,0.00027236,2]
[314225347,1708099770050,-157.56262935,0.00027238,2]
[314225348,1708099770071,-150.1,0.00027461,2]
[314225349,1708099770093,-152.13,0.00027605,2]
[314225350,1708099770114,-150.1,0.00027805,2]
[314225351,1708099770134,-6520.96659184,0.00027926,2]
[314225353,1708099779331,-9124.05340816,0.00027926,2]
[314225354,1708099779353,-223.94546598,0.00027998,2]
[314225355,1708099779374,-450.34991388,0.00027998,2]
[314225356,1708099779396,-1067.34537483,0.00027998,2]
[314225357,1708099779419,-763.90157645,0.00027998,2]
[314225358,1708099779439,-155.0,0.00027998,2]
[314225359,1708099779463,-204.20811932,0.00027999,2]
[314225360,1708099779484,-38011.19614138,0.00028,2]
[314225361,1708099786241,-515.83860278,0.00027998,2]
[314225362,1708099786261,-49484.16139722,0.00028,2]
[314225363,1708099804305,-1067.34537483,0.00027999,2]
[314225364,1708099804326,-293.6561996,0.00027999,2]
[314225365,1708099804346,-763.90157645,0.00027999,2]
[314225366,1708099804368,-29255.03279784,0.00028,2]
[314225367,1708099811905,-2881.42500388,0.00028,2]
[314225368,1708099817313,-2000.0,0.00028,2]
[314225369,1708099825370,-10000.0,0.00028,2]
[314225370,1708099829748,-10000.0,0.00028,2]
[314225375,1708099832297,-322.64815074,0.00028,2]
[314225376,1708099832309,-1190.88289313,0.00028,2]
[314225377,1708099832326,-2576.65017363,0.00028,2]
[314225378,1708099832338,-1109.28653054,0.00028,2]
[314225379,1708099832368,-50879.51811764,0.00028,2]
[314225380,1708099832377,-200.26125164,0.00028,2]
[314225381,1708099832387,-152.13,0.00028126,2]
[314225382,1708099832399,-3080.95,0.00028294,2]
[314225383,1708099832408,-297.1,0.00028345,2]
[314225384,1708099832417,-593.91,0.00028533,2]
[314225385,1708099832426,-178.0,0.00028646,2]
[314225386,1708099832436,-152.13,0.00028647,2]
[314225387,1708099832446,-542.77,0.00028944,2]
[314225388,1708099832455,-850.0,0.00029,3]
[314225389,1708099832464,-808.24,0.00029122,2]
[314225390,1708099832473,-2705.0,0.00029122,2]
[314225391,1708099832483,-171.52,0.0002926,2]
[314225392,1708099832495,-297.1,0.00029347,2]
[314225393,1708099832504,-11144.5,0.00029353,2]
[314225394,1708099832513,-593.91,0.00029829,2]
[314225395,1708099832523,-480.0,0.00029835,2]
[314225396,1708099832533,-2493.52244659,0.00029937,2]
[314225397,1708099832545,-319.28,0.00029937,2]
[314225398,1708099832557,-268.14755341,0.00029937,2]
[314225399,1708099832566,-1111.47462434,0.00029998,2]
[314225400,1708099832575,-763.90157645,0.00029998,2]
[314225401,1708099832585,-515.83860278,0.00029999,2]
[314225402,1708099832594,-950.51215876,0.0003,2]
[314225405,1708099832750,-4137.08424422,0.0003,2]
[314225406,1708099832808,-139432.485227,0.0003,2]
[314225407,1708099832820,-366.374455,0.0003,2]
[314225408,1708099832845,-307.8555035,0.0003,2]
[314225409,1708099832871,-418.90217464,0.0003,2]
[314225410,1708099832883,-1353.16055057,0.0003,2]
[314225411,1708099832895,-75603.82386116,0.0003,2]
[314225412,1708099832906,-299.93,0.0003007,2]
[314225413,1708099832917,-155.03,0.00030137,2]
[314225414,1708099832926,-299.93,0.00030228,2]
[314225415,1708099832936,-297.1,0.0003035,2]
[314225416,1708099832945,-299.93,0.00030386,2]
[314225417,1708099832954,-299.40455913,0.0003041,2]
[314225418,1708099832963,-299.93,0.00030545,2]
[314225419,1708099832972,-299.93,0.00030703,2]
[314225420,1708099832981,-299.93,0.00030861,2]
[314225421,1708099832991,-299.93,0.00031019,2]
[314225422,1708099833001,-593.91,0.00031126,2]
[314225423,1708099833010,-299.93,0.00031178,2]
[314225424,1708099833019,-542.77,0.00031208,2]
[314225425,1708099833029,-299.93,0.00031336,2]
[314225426,1708099833040,-297.1,0.00031352,2]
[314225427,1708099833050,-299.93,0.00031494,2]
[314225428,1708099833059,-3080.95,0.00031581,2]
[314225429,1708099833069,-299.93,0.00031653,2]
[314225430,1708099833078,-439.10667108,0.000318,3]
[314225431,1708099833087,-299.93,0.00031811,2]
[314225432,1708099833096,-299.93,0.00031969,2]
[314225433,1708099833106,-172.01,0.00032051,2]
[314225434,1708099833117,-299.93,0.00032127,2]
[314225435,1708099833127,-299.93,0.00032286,2]
[314225436,1708099833138,-297.1,0.00032354,2]
[314225437,1708099833147,-299.93,0.00032444,2]
[314225438,1708099833156,-261.53523703,0.00032602,2]
[314225439,1708099833168,-38.39476297,0.00032602,2]
[314225440,1708099833177,-299.93,0.0003276,2]
[314225441,1708099833186,-299.93,0.00032919,2]
[314225442,1708099833195,-299.93,0.00033077,2]
[314225443,1708099833204,-480.0,0.0003315,2]
[314225444,1708099833214,-3080.95,0.00033225,2]
[314225445,1708099833223,-297.1,0.00033357,2]
[314225446,1708099833232,-542.77,0.00033472,2]
[314225447,1708099833242,-500.0,0.00034257,2]
[314225448,1708099833251,-297.1,0.00034359,2]
[314225449,1708099833261,-267.7,0.00034521,2]
[314225450,1708099833270,-1344.07158275,0.00034799,2]
[314225451,1708099833281,-1344.07158269,0.00034799,2]
[314225452,1708099833293,-1344.07158269,0.00034799,2]
[314225453,1708099833303,-3080.95,0.00034869,2]
[314225454,1708099833312,-2484.44270937,0.000349,2]
[314225455,1708099833321,-2484.44270934,0.000349,2]
[314225456,1708099833332,-2484.44270934,0.000349,2]
[314225457,1708099833341,-2484.44270934,0.000349,2]
[314225458,1708099833351,-156.69058786,0.00034991,7]
[314225459,1708099833360,-45230.96609356,0.0003509,2]
[314225460,1708099833369,-1344.07158269,0.00035251,2]
[314225461,1708099833379,-157.56262935,0.00035543,2]
[314225462,1708099833387,-155.03,0.00035616,2]
[314225463,1708099833397,-542.77,0.00035735,2]
[314225464,1708099833407,-267.7,0.00035798,2]
[314225465,1708099833416,-152.74044294,0.0003591,5]
[314225466,1708099833425,-13274.83557811,0.00036,10]
[314225467,1708099833434,-2484.44270934,0.00036286,2]
[314225468,1708099833443,-150.0,0.000364,2]
[314225469,1708099833452,-155.0,0.000364,2]
[314225470,1708099833461,-480.0,0.00036465,2]
[314225471,1708099833471,-48396.14204471,0.000365,5]
[314225472,1708099833480,-2269.0,0.00036558,2]
[314225473,1708099833492,-157.56262935,0.00036581,2]
[314225474,1708099833502,-29283.8493612,0.00036599,14]
[314225475,1708099833511,-1248.69372097,0.00036599,12]
[314225476,1708099833521,-22596.55027962,0.00036599,14]
[314225477,1708099833531,-805.30585743,0.00036617,12]
[314225478,1708099833541,-9127.63759873,0.000368,2]
[314225479,1708099833551,-1243.69,0.00036913,2]
[314225480,1708099833560,-150.0,0.00036948,2]
[314225481,1708099833569,-520.0,0.00036997,2]
[314225482,1708099833579,-150.0,0.00037,2]
[314225483,1708099833588,-150.0,0.00037,2]
[314225484,1708099833598,-300.0,0.00037,5]
[314225485,1708099833607,-500.0,0.00037,2]
[314225486,1708099833618,-267.7,0.00037075,2]
[314225487,1708099833629,-202.7986652,0.000372,10]
[314225488,1708099833639,-168.13605804,0.000372,2]
[314225489,1708099833649,-151.92474589,0.000372,2]
[314225490,1708099833659,-510.30003893,0.000372,2]
[314225491,1708099833668,-13320.97212296,0.000373,2]
[314225492,1708099833681,-289.10078218,0.000373,2]
[314225493,1708099833708,-661.43054169,0.000373,2]
[314225494,1708099833720,-1806.00192747,0.000373,2]
[314225495,1708099833731,-3844.52115975,0.000373,2]
[314225496,1708099833745,-713.07366266,0.000373,2]
[314225501,1708099838333,-206.0,0.00032916,2]
[314225502,1708099838342,-206.0,0.00034721,5]
[314225503,1708099838352,-206.0,0.00036527,9]
[314225504,1708099838361,-686.25669131,0.000373,2]
[314225505,1708099838374,-744.98008457,0.000373,2]
[314225506,1708099838387,-741.27723955,0.000373,2]
[314225507,1708099838398,-420.8888349,0.000373,2]
[314225508,1708099838410,-313.89851893,0.000373,2]
[314225509,1708099838577,-7350.9428607,0.000373,2]
[314225510,1708099838589,-157707.75710169,0.000373,2]
[314225511,1708099838617,-56398.89847164,0.000373,2]
[314225512,1708099838626,-39488.7513,0.000373,2]
[314225513,1708099838635,-100000.0,0.000373,2]
[314225514,1708099838644,-10784.423,0.000373,2]
[314225515,1708099838654,-1000.0,0.000373,2]
[314225516,1708099838662,-150.0,0.00037399,2]
[314225517,1708099838672,-300.0,0.00037399,7]
[314225518,1708099838681,-196957.48563031,0.000374,5]
[314225519,1708099838690,-150.0,0.00037496,2]
[314225521,1708099838699,-755.96803352,0.000375,5]
[314225523,1708099838708,-500.0,0.000375,2]
[314225525,1708099838717,-150.0,0.00037548,2]
[314225527,1708099838726,-494.3200348,0.00037548,5]
[314225529,1708099838736,-157.56262935,0.00037619,2]
[314225531,1708099838748,-151.92474558,0.00037639,2]
[314225533,1708099838757,-180.0,0.00037671,2]
[314225535,1708099838766,-1344.07158269,0.00037692,2]
[314225537,1708099838776,-155.0,0.0003777,2]
[314225539,1708099838785,-162.8426817,0.000378,2]
[314225541,1708099838794,-912.11,0.00037847,2]
[314225543,1708099838804,-2484.44270934,0.00037865,2]
[314225545,1708099838813,-184.50166551,0.000379,2]
[314225546,1708099838822,-441021.78033,0.000379,3]
[314225548,1708099838831,-1444.72395973,0.000379,2]
[314225550,1708099838841,-1872.51627578,0.000379,2]
[314225552,1708099838850,-176408.712132,0.0003799,3]
[314225554,1708099838859,-542.77,0.00037999,2]
[314225556,1708099838868,-94908.83830244,0.00038,2]
[314225558,1708099838877,-5758.96773793,0.00038,2]
[314225560,1708099838888,-258452.45206557,0.00038,2]
[314225565,1708099838920,-7784.04,0.00038,2]
[314225567,1708099838931,-349.78014134,0.00038,2]
[314225569,1708099838943,-11719.15,0.00038,2]
[314225612,1708099840908,-29869.54186927,0.00036599,14]
[314225613,1708099840918,-18678.47360435,0.00038,2]
[314225614,1708099840928,-7387.97447778,0.00038,2]
[314225615,1708099842313,-538.42990855,0.0002997,4]
[314225616,1708099842323,-612.79362498,0.00038,2]
[314225617,1708099842336,-1820.7861,0.00038,2]
[314225618,1708099843124,-1764.87821807,0.00038,2]
[314225621,1708099843142,-439.10667098,0.00038,2]
[314225637,1708099843275,-2281.1636858,0.00038,2]
[314225646,1708099843403,-6236.33304638,0.00038,2]
[314225647,1708099843415,-456.5727416,0.00038,2]
[314225648,1708099843428,-2434.69392204,0.00038,2]
[314225649,1708099843440,-299.69259314,0.00038,2]
[314225652,1708099843471,-4034.7275,0.00038,2]
[314225655,1708099843534,-137558.13831695,0.00038,2]
[314225656,1708099843544,-18286.54009119,0.00038,2]
[314225657,1708099843554,-150.0,0.00038044,2]
[314225658,1708099843563,-151.92474558,0.00038077,2]
[314225659,1708099843572,-150.0,0.00038096,2]
[314225660,1708099843581,-206.0,0.00038332,13]
[314225661,1708099843591,-267.7,0.00038352,2]
[314225663,1708099843600,-200.0,0.00038356,2]
[314225665,1708099843609,-208.0,0.00038356,2]
[314225667,1708099843619,-150.0,0.00038356,2]
[314225669,1708099843628,-1086.24,0.00038356,15]
[314225671,1708099843638,-152.0,0.00038456,7]
[314225672,1708099843647,-561.26,0.000385,3]
[314225673,1708099843657,-151.92474558,0.00038516,2]
[314225674,1708099843666,-150.0,0.00038644,2]
[314225675,1708099843675,-157.56262935,0.00038657,2]
[314225676,1708099843685,-1187.16853599,0.00038765,2]
[314225677,1708099843694,-250.0,0.0003889,2]
[314225678,1708099843704,-1000.0,0.00038899,14]
[314225679,1708099843713,-106278.0954796,0.000389,3]
[314225683,1708099846711,-1026.35528505,0.00036598,4]
[314225684,1708099846720,-693.06530124,0.00036598,4]
[314225685,1708099846730,-3847.24595011,0.000389,3]
[314225686,1708099847472,-90763.8731698,0.000389,3]
[314225687,1708099847482,-151.92474558,0.00038955,2]
[314225688,1708099847491,-1000.0,0.00039,2]
[314225689,1708099847501,-12634.46,0.00039,2]
[314225690,1708099847511,-152.0,0.00039004,7]
[314225691,1708099847521,-630.79931306,0.00039082,11]
[314225692,1708099847530,-2100.66159971,0.00039111,10]
[314225693,1708099847539,-155.0,0.0003914,2]
[314225694,1708099847548,-250.0,0.00039164,2]
[314225695,1708099847557,-1000.0,0.00039173,17]
[314225696,1708099847566,-227.64625164,0.00039192,2]
[314225697,1708099847575,-648.64,0.0003926,2]
[314225698,1708099847585,-150.0,0.00039366,2]
[314225699,1708099847594,-151.92474558,0.00039394,4]
[314225700,1708099847603,-250.0,0.00039438,2]
[314225701,1708099847612,-2484.44270934,0.00039444,2]
[314225702,1708099847622,-200.0,0.00039496,2]
[314225703,1708099847631,-1000.0,0.000395,2]
[314225704,1708099847640,-17721.08844974,0.000395,20]
[314225705,1708099847649,-152.0,0.00039552,7]
[314225706,1708099847659,-267.7,0.0003963,2]
[314225707,1708099847668,-157.56262935,0.00039695,2]
[314225708,1708099847677,-250.0,0.00039712,2]
[314225709,1708099847686,-150.0,0.0003974,2]
[314225710,1708099847696,-480.0,0.0003978,2]
[314225711,1708099847706,-200.0,0.00039796,10]
[314225712,1708099847715,-1017.6414,0.00039799,2]
[314225713,1708099847724,-10304.63355422,0.000398,4]
[314225714,1708099847733,-151.92474558,0.00039832,6]
[314225715,1708099847742,-11076.77576378,0.00039891,2]
[314225716,1708099847752,-81605.46486384,0.00039895,120]
[314225717,1708099847833,-2658.96199785,0.00039895,120]
[314225718,1708099847861,-279.37276792,0.00039895,120]
[314225719,1708100125455,176.8,0.00017341,2]
[314225726,1708100494868,450.0,0.00025,3]
[314225727,1708100543152,202.2655046,0.00024987,2]
[314225728,1708100661939,175.74,0.00016712,2]
[314225729,1708100672610,-2152.3380242,0.00026998,2]
[314225730,1708100672636,-500.0,0.00026999,2]
[314225731,1708100672662,-500.0,0.00027,3]
[314225732,1708100672686,-550.0,0.00029,3]
[314225733,1708100672712,-385.55466859,0.000295,3]
[314225734,1708100672740,-150.0,0.00029999,2]
[314225735,1708100672766,-165789.59580809,0.0003,2]
[314225741,1708100765840,-4200.0,0.0003,2]
[314225746,1708100997553,-1000.0,0.00027999,5]
[314225747,1708100997573,-165.56,0.00029233,2]
[314225748,1708100997594,-37.89269279,0.0003,2]
[314225749,1708101011124,-518.01970828,0.00034519,7]
[314225750,1708101011145,-1215.540695,0.0003452,2]
[314225751,1708101011167,-159.28965977,0.00034697,2]
[314225752,1708101011187,-331.9904,0.00034698,2]
[314225753,1708101011207,-577.5808,0.000347,2]
[314225754,1708101011227,-1823.311042,0.00034794,2]
[314225755,1708101011246,-155.0,0.00034797,4]
[314225756,1708101011265,-150.99,0.00034797,2]
[314225757,1708101011288,-300.0,0.00034799,3]
[314225758,1708101011308,-2302.0,0.000348,3]
[314225759,1708101011329,-499.99,0.000348,2]
[314225760,1708101011348,-1372.69,0.000348,2]
[314225761,1708101011369,-2431.08139,0.00034931,2]
[314225762,1708101011390,-159.28965969,0.00035062,2]
[314225763,1708101011411,-3038.851737,0.00035068,2]
[314225764,1708101011432,-673.01,0.00035128,2]
[314225765,1708101011452,-4254.392432,0.00035342,2]
[314225766,1708101011473,-159.28965969,0.00035426,2]
[314225767,1708101011494,-150.0,0.00035518,2]
[314225768,1708101011514,-1338.81995715,0.00035586,2]
[314225769,1708101011535,-1852.42,0.00035754,2]
[314225770,1708101011555,-1338.81995715,0.00035754,2]
[314225771,1708101011576,-159.28965969,0.00035791,2]
[314225772,1708101011596,-1758.77956985,0.00035818,10]
[314225773,1708101011616,-2500.0,0.000359,2]
[314225774,1708101011638,-4862.16278,0.00036,2]
[314225775,1708101011661,-168.89,0.00036022,2]
[314225776,1708101011682,-159.28965969,0.00036155,2]
[314225777,1708101011704,-1338.81995715,0.00036156,2]
[314225778,1708101011725,-1338.81995715,0.00036434,2]
[314225779,1708101011745,-285.65888179,0.000365,2]
[314225780,1708101011765,-169.38,0.00036512,2]
[314225781,1708101011790,-10168.44762583,0.00036518,14]
[314225782,1708101011812,-159.28965969,0.0003652,2]
[314225783,1708101011834,-925.34245864,0.0003652,2]
[314225784,1708101027813,-767.66,0.00034384,2]
[314225785,1708101027835,-150.0,0.000358,2]
[314225786,1708101027856,-150.0,0.00036323,2]
[314225787,1708101027878,-22974.65754136,0.0003652,2]
[314225788,1708101027898,-200.0,0.00036536,2]
[314225789,1708101027922,-800.3692055,0.00036543,12]
[314225790,1708101027945,-14563.5911208,0.00036592,14]
[314225791,1708101027964,-1338.81995715,0.0003662,2]
[314225792,1708101027984,-168.89,0.00036648,2]
[314225793,1708101028004,-767.66,0.00036648,2]
[314225794,1708101028026,-673.53,0.00036717,2]
[314225795,1708101028048,-250.0,0.00036723,111]
[314225796,1708101028067,-200.0,0.00036801,2]
[314225797,1708101028088,-159.28965969,0.00036884,2]
[314225798,1708101028107,-1338.81995715,0.00036908,2]
[314225799,1708101028128,-171.53,0.00036971,120]
[314225800,1708101028149,-200.0,0.00036973,2]
[314225801,1708101028169,-250.0,0.00036973,2]
[314225802,1708101028188,-1750.47,0.00037003,2]
[314225803,1708101028208,-2000.0,0.00037009,2]
[314225804,1708101028226,-500.0,0.00037015,2]
[314225805,1708101028246,-250.0,0.00037022,2]
[314225806,1708101028265,-374.71255835,0.00037027,2]
[314225814,1708101031573,-125.28744165,0.00037027,2]
[314225815,1708101031582,-267.72,0.00037027,2]
[314225816,1708101031592,-152.57,0.00037028,10]
[314225817,1708101031606,-1177.6,0.00037036,2]
[314225818,1708101031622,-803.53,0.00037043,10]
[314225819,1708101031632,-1338.81995715,0.00037053,2]
[314225820,1708101031643,-614.45813168,0.00037061,2]
[314225821,1708101031659,-135.54186832,0.00037061,2]
[314225822,1708101031670,-160.7,0.00037063,10]
[314225823,1708101031680,-219.14,0.0003707,2]
[314225824,1708101031690,-500.0,0.00037073,2]
[314225825,1708101031700,-206.0,0.00037138,2]
[314225826,1708101031710,-934.34489329,0.00037191,2]
[314225827,1708101031723,-1134.21510671,0.00037191,2]
[314225828,1708101031734,-207.1733,0.00037213,2]
[314225829,1708101031744,-131.58159329,0.00037245,2]
[314225830,1708101031777,-532.36840671,0.00037245,2]
[314225831,1708101031789,-159.28965969,0.00037249,2]
[314225832,1708101031799,-168.89,0.00037273,2]
[314225833,1708101031808,-588.87956143,0.00037299,5]
[314225834,1708101031818,-666.0,0.00037399,2]
[314225835,1708101031828,-67.31114892,0.00037473,2]
[314225836,1708101031865,-584.83202855,0.00037473,2]
[314225839,1708101031878,-686.67677968,0.00037473,2]
[314225841,1708101031887,-159.28965969,0.00037613,2]
[314225843,1708101031897,-640.47095837,0.00037672,2]
[314225846,1708101031908,-300.0,0.00037672,2]
[314225849,1708101031920,-398.34899878,0.00037672,2]
[314225851,1708101031930,-608.07,0.00037775,2]
[314225854,1708101031939,-155.65,0.00037814,2]
[314225858,1708101031949,-168.89,0.00037899,2]
[314225861,1708101031959,-1338.81995715,0.00037922,2]
[314225864,1708101031968,-159.28965969,0.00037978,2]
[314225867,1708101031978,-166.64,0.00038005,2]
[314225870,1708101031987,-155.65,0.00038051,2]
[314225873,1708101031996,-12224.82803175,0.00038187,2]
[314225876,1708101032009,-50318.66312228,0.00038187,2]
[314225878,1708101032021,-277.93905889,0.00038187,2]
[314225883,1708101032059,-659.64014686,0.00038187,2]
[314225903,1708101037639,-518.01970828,0.00034367,7]
[314225904,1708101037649,-156.44,0.00038183,120]
[314225905,1708101037663,-2422.68029172,0.00038187,2]
[314225906,1708101037699,-8689.9480485,0.00038187,2]
[314225907,1708101037708,-6902.99727446,0.00038187,2]
[314225908,1708101037720,-400.939,0.00038187,2]
[314225909,1708101037769,-6885.79185802,0.00038187,2]
[314225910,1708101037781,-78750.76956752,0.00038187,2]
[314225911,1708101037793,-1338.81995715,0.0003827,2]
[314225912,1708101037802,-155.65,0.00038287,2]
[314225913,1708101037811,-159.28965969,0.00038342,2]
[314225914,1708101037821,-150.0,0.00038356,2]
[314225915,1708101037831,-995.72,0.00038356,15]
[314225916,1708101037840,-189.8,0.00038356,2]
[314225917,1708101037850,-1000.0,0.000384,2]
[314225918,1708101037859,-155.65,0.00038523,2]
[314225919,1708101037868,-154.74,0.00038547,2]
[314225920,1708101037877,-1338.81995715,0.00038552,2]
[314225921,1708101037886,-171.83,0.00038611,2]
[314225922,1708101037895,-1177.6,0.0003868,2]
[314225923,1708101037904,-1000.0,0.00038692,2]
[314225924,1708101037913,-159.28965969,0.00038707,2]
[314225925,1708101037922,-155.65,0.0003876,2]
[314225926,1708101037931,-152.57,0.00038842,10]
[314225927,1708101037940,-1338.81995715,0.00038873,2]
[314225928,1708101037949,-282.19441718,0.0003889,2]
[314225929,1708101037958,-250.0,0.000389,2]
[314225930,1708101037967,-150.0,0.000389,2]
[314225931,1708101037976,-150.0,0.000389,2]
[314225932,1708101037985,-155.0,0.000389,2]
[314225934,1708101037994,-177.38,0.000389,2]
[314225935,1708101038003,-767.66,0.00038912,2]
[314225937,1708101038012,-1338.81995715,0.00038966,2]
[314225939,1708101038021,-155.65,0.00038996,2]
[314225940,1708101038030,-636.57,0.00039,30]
[314225941,1708101038041,-636.58,0.00039,30]
[314225942,1708101038051,-1000.0,0.00039,8]
[314225944,1708101038059,-1000.0,0.00039,8]
[314225946,1708101038068,-12634.46,0.00039,2]
[314225947,1708101038077,-159.28965969,0.00039071,2]
[314225948,1708101038086,-152.0,0.00039104,7]
[314225949,1708101038095,-250.0,0.00039174,2]
[314225950,1708101038104,-206.0,0.00039216,7]
[314225951,1708101038113,-150.0,0.00039223,2]
[314225952,1708101038122,-155.65,0.00039232,2]
[314225953,1708101038131,-648.64,0.0003926,2]
[314225954,1708101038141,-150.0,0.00039366,2]
[314225955,1708101038150,-308.54427584,0.000394,30]
[314225956,1708101038159,-1338.81995715,0.0003941,2]
[314225957,1708101038168,-159.28965969,0.00039436,2]
[314225958,1708101038177,-250.0,0.00039448,2]
[314225959,1708101038186,-177.38,0.00039448,2]
[314225960,1708101038195,-666.0,0.00039454,2]
[314225961,1708101038204,-155.65,0.00039469,2]
[314225962,1708101038214,-3000.0,0.0003949,2]
[314225963,1708101038223,-1037.0,0.000395,8]
[314225964,1708101038232,-536.69069113,0.000396,9]
[314225965,1708101038241,-2500.0,0.000396,2]
[314225966,1708101038250,-1739.10989669,0.00039605,2]
[314225967,1708101038259,-152.0,0.00039652,7]
[314225968,1708101038268,-2891.81692311,0.00039668,4]
[314225969,1708101038277,-1338.81995715,0.00039669,2]
[314225970,1708101038288,-155.2546,0.000397,2]
[314225971,1708101038299,-245000.0,0.000397,2]
[314225972,1708101038308,-155.65,0.00039705,2]
[314225973,1708101038318,-250.0,0.00039722,2]
[314225974,1708101038327,-283.92155326,0.00039775,2]
[314225975,1708101038336,-235.65162156,0.0003978,15]
[314225976,1708101038345,-151.92474558,0.00039785,5]
[314225977,1708101038354,-165.77928801,0.00039785,2]
[314225978,1708101038548,-235.65162156,0.00039787,15]
[314225979,1708101038575,-150.0,0.00039789,2]
[314225980,1708101038585,-73092.5680919,0.0003979,6]
[314225981,1708101038595,-235.65162156,0.00039793,15]
[314225982,1708101038604,-200.0,0.00039796,15]
[314225983,1708101038614,-150.0,0.00039799,2]
[314225984,1708101038624,-100000.0,0.000398,2]
[314225985,1708101038634,-1000.0,0.000398,2]
[314225986,1708101038647,-5316.38117579,0.000398,13]
[314225987,1708101038660,-39488.7513,0.000398,2]
[314225988,1708101038670,-2932.9401,0.000398,2]
[314225989,1708101038680,-500.0,0.000398,2]
[314225990,1708101038691,-6000.88497933,0.000398,30]
[314225991,1708101038700,-5000.0,0.000398,3]
[314225992,1708101038710,-159.28965969,0.000398,2]
[314225993,1708101038719,-494.7187573,0.000398,2]
[314225994,1708101038729,-1248.34418386,0.000398,2]
[314225995,1708101038739,-283.92155325,0.00039811,2]
[314225996,1708101038749,-283.92155325,0.00039848,2]
[314225997,1708101038759,-73092.5680919,0.0003986,6]
[314225998,1708101038768,-73092.5680919,0.00039865,6]
[314225999,1708101038777,-73092.5680919,0.0003988,6]
[314226000,1708101038788,-73092.5680919,0.00039883,6]
[314226001,1708101038798,-283.92155325,0.00039884,2]
[314226002,1708101038808,-292370.272367,0.0003989,6]
[314226003,1708101038820,-7662.6560785,0.00039893,2]
[314226004,1708101038831,-16881.9739291,0.00039893,2]
[314226005,1708101038840,-1696.3710982,0.00039893,2]
[314226006,1708101038850,-1831.5570219,0.00039893,2]
[314226007,1708101038858,-249395.8384774,0.00039893,2]
[314226008,1708101038867,-1521.6998737,0.00039893,2]
[314226009,1708101038877,-517.16427173,0.00039894,4]
[314226010,1708101038886,-75577.7128894,0.00039895,120]